fUST/lending_fUST_20250218
["ID","MTS","AMOUNT","RATE_DAILY","PERIOD"]
[353394516,1739812240047,-500.65,0.00011205,2]
[353394517,1739812240056,-500.0,0.00011205,2]
[353394519,1739812240065,-751.05,0.00011205,2]
[353394521,1739812240075,-500.0,0.00011205,2]
[353394522,1739812240086,-1037.11,0.00011205,2]
[353394523,1739812240096,-2753.72,0.00011205,2]
[353394524,1739812240106,-500.0,0.00011205,2]
[353394525,1739812240116,-500.0,0.00011205,2]
[353394526,1739812240126,-500.0,0.00011205,2]
[353394527,1739812240137,-500.0,0.00011205,2]
[353394528,1739812240147,-500.0,0.00011205,2]
[353394529,1739812240156,-500.0,0.00011205,2]
[353394530,1739812240165,-500.0,0.00011205,2]
[353394531,1739812240176,-460.91,0.00011205,2]
[353394532,1739812240185,-500.0,0.00011205,2]
[353394533,1739812240195,-500.0,0.00011205,2]
[353394534,1739812240204,-500.0,0.00011205,2]
[353394535,1739812240213,-500.0,0.00011287,2]
[353394536,1739812240223,-500.0,0.00011287,2]
[353394537,1739812240231,-205.63443022,0.00011287,2]
[353394538,1739812240241,-509.17,0.00011287,2]
[353394539,1739812240250,-236.57,0.00011287,2]
[353394540,1739812240259,-344.96,0.00011287,2]
[353394541,1739812240268,-500.0,0.00011287,2]
[353394542,1739812240277,-500.0,0.00011287,2]
[353394543,1739812240286,-1143.47,0.00011287,2]
[353394544,1739812240295,-257.7,0.00011287,2]
[353394545,1739812240304,-500.0,0.00011287,2]
[353394546,1739812240313,-500.0,0.00011287,2]
[353394547,1739812240322,-500.0,0.00011287,2]
[353394548,1739812240332,-500.0,0.00011287,2]
[353394549,1739812240341,-197.99,0.00011287,2]
[353394550,1739812240351,-500.0,0.00011287,2]
[353394551,1739812240361,-500.0,0.00011287,2]
[353394552,1739812240370,-751.05,0.00011287,2]
[353394553,1739812240380,-589.11,0.00011287,2]
[353394554,1739812240389,-1037.11,0.00011287,2]
[353394555,1739812240398,-2753.72,0.00011287,2]
[353394556,1739812240408,-500.0,0.00011287,2]
[353394557,1739812240418,-500.0,0.00011287,2]
[353394558,1739812240427,-500.0,0.00011287,2]
[353394559,1739812240436,-500.0,0.00011287,2]
[353394560,1739812240446,-500.0,0.00011287,2]
[353394561,1739812240456,-500.0,0.00011287,2]
[353394562,1739812240466,-335.59,0.00011287,2]
[353394563,1739812240475,-500.0,0.00011287,2]
[353394564,1739812240487,-500.0,0.00011287,2]
[353394565,1739812240496,-500.0,0.00011287,2]
[353394566,1739812240506,-500.0,0.00011369,2]
[353394567,1739812240515,-500.0,0.00011369,2]
[353394568,1739812240525,-530.03,0.00011369,2]
[353394569,1739812240535,-500.0,0.00011369,2]
[353394570,1739812240544,-1143.47,0.00011369,2]
[353394571,1739812240554,-500.0,0.00011369,2]
[353394572,1739812240573,-500.0,0.00011369,2]
[353394573,1739812240583,-500.0,0.00011369,2]
[353394574,1739812240592,-500.0,0.00011369,2]
[353394575,1739812240601,-500.0,0.00011369,2]
[353394576,1739812240611,-500.0,0.00011369,2]
[353394577,1739812240621,-751.05,0.00011369,2]
[353394578,1739812240630,-1037.11,0.00011369,2]
[353394579,1739812240639,-2753.72,0.00011369,2]
[353394580,1739812240648,-500.0,0.00011369,2]
[353394581,1739812240658,-500.0,0.00011369,2]
[353394582,1739812240667,-500.0,0.00011369,2]
[353394583,1739812240676,-500.0,0.00011369,2]
[353394584,1739812240685,-500.0,0.00011369,2]
[353394585,1739812240694,-500.0,0.00011369,2]
[353394586,1739812240704,-500.0,0.00011369,2]
[353394587,1739812240714,-325.04,0.00011369,2]
[353394588,1739812240724,-183.66,0.00011452,2]
[353394589,1739812240734,-500.0,0.00011452,2]
[353394590,1739812240747,-500.0,0.00011452,2]
[353394591,1739812240756,-1143.47,0.00011452,2]
[353394592,1739812240766,-235.01,0.00011452,2]
[353394593,1739812240775,-453.17,0.00011452,2]
[353394594,1739812240785,-500.0,0.00011452,2]
[353394595,1739812240794,-331.96,0.00011452,2]
[353394596,1739812240803,-570.37,0.00011452,2]
[353394597,1739812240812,-500.0,0.00011452,2]
[353394598,1739812240822,-751.05,0.00011452,2]
[353394599,1739812240831,-1037.11,0.00011452,2]
[353394600,1739812240840,-2753.72,0.00011452,2]
[353394601,1739812240850,-500.0,0.00011452,2]
[353394602,1739812240859,-315.05,0.00011452,2]
[353394603,1739812240868,-500.0,0.00011452,2]
[353394604,1739812240878,-500.0,0.00011452,2]
[353394605,1739812240887,-500.0,0.00011452,2]
[353394606,1739812240898,-326.96197047,0.00011452,2]
[353394607,1739812240907,-500.0,0.00011452,2]
[353394608,1739812240918,-500.0,0.00011521,2]
[353394609,1739812240928,-280.9,0.00011534,2]
[353394610,1739812240939,-500.0,0.00011534,2]
[353394611,1739812240949,-1143.47,0.00011534,2]
[353394612,1739812240959,-500.0,0.00011534,2]
[353394613,1739812240968,-500.0,0.00011534,2]
[353394614,1739812240978,-751.05,0.00011534,2]
[353394615,1739812240987,-1037.11,0.00011534,2]
[353394616,1739812240996,-2753.72,0.00011534,2]
[353394617,1739812241006,-500.0,0.00011534,2]
[353394618,1739812241015,-526.22,0.00011534,2]
[353394619,1739812241025,-500.0,0.00011534,2]
[353394620,1739812241034,-389.72,0.00011534,2]
[353394621,1739812241043,-500.0,0.00011534,2]
[353394622,1739812241053,-7438.69753278,0.00011558,2]
[353394623,1739812241062,-500.0,0.00011616,2]
[353394624,1739812241071,-1143.47,0.00011616,2]
[353394625,1739812241080,-500.0,0.00011616,2]
[353394626,1739812241090,-483.14,0.00011616,2]
[353394627,1739812241099,-751.05,0.00011616,2]
[353394628,1739812241109,-1037.11,0.00011616,2]
[353394629,1739812241118,-2753.72,0.00011616,2]
[353394630,1739812241128,-165.34,0.00011616,2]
[353394631,1739812241137,-500.0,0.00011616,2]
[353394632,1739812241146,-500.0,0.00011616,2]
[353394633,1739812241156,-343.59174958,0.00011618,2]
[353394634,1739812241165,-642.13,0.00011698,2]
[353394635,1739812241175,-1143.47,0.00011698,2]
[353394636,1739812241184,-500.0,0.00011698,2]
[353394637,1739812241194,-751.05,0.00011698,2]
[353394638,1739812241203,-1037.11,0.00011698,2]
[353394639,1739812241213,-2753.72,0.00011698,2]
[353394640,1739812241302,-500.0,0.00011698,2]
[353394641,1739812241313,-500.0,0.00011698,2]
[353394642,1739812241323,-1143.47,0.0001178,2]
[353394643,1739812241333,-500.0,0.0001178,2]
[353394644,1739812241343,-751.05,0.0001178,2]
[353394645,1739812241353,-1037.11,0.0001178,2]
[353394646,1739812241362,-2753.72,0.0001178,2]
[353394647,1739812241372,-500.0,0.0001178,2]
[353394648,1739812241382,-500.0,0.0001178,2]
[353394649,1739812241392,-1143.47,0.00011863,2]
[353394650,1739812241401,-442.7,0.00011863,2]
[353394651,1739812241410,-751.05,0.00011863,2]
[353394652,1739812241420,-1037.11,0.00011863,2]
[353394653,1739812241429,-2753.72,0.00011863,2]
[353394654,1739812241438,-500.0,0.00011863,2]
[353394655,1739812241448,-227.81,0.00011863,2]
[353394656,1739812241458,-1143.47,0.00011945,2]
[353394657,1739812241468,-751.05,0.00011945,2]
[353394658,1739812241477,-1037.11,0.00011945,2]
[353394659,1739812241489,-2753.72,0.00011945,2]
[353394660,1739812241499,-320.7,0.00011945,2]
[353394661,1739812241508,-1143.47,0.00012027,2]
[353394662,1739812241517,-751.05,0.00012027,2]
[353394663,1739812241527,-1037.11,0.00012027,2]
[353394664,1739812241538,-2753.72,0.00012027,2]
[353394665,1739812241547,-1143.47,0.00012109,2]
[353394666,1739812241558,-751.05,0.00012109,2]
[353394667,1739812241568,-1037.11,0.00012109,2]
[353394668,1739812241578,-2753.72,0.00012109,2]
[353394669,1739812241588,-1143.47,0.00012191,2]
[353394670,1739812241597,-751.05,0.00012191,2]
[353394671,1739812241606,-1037.11,0.00012191,2]
[353394672,1739812241616,-2753.72,0.00012191,2]
[353394673,1739812241625,-1143.47,0.00012273,2]
[353394674,1739812241634,-751.05,0.00012273,2]
[353394675,1739812241643,-1037.11,0.00012273,2]
[353394676,1739812241653,-2753.72,0.00012273,2]
[353394677,1739812241663,-1143.47,0.00012356,2]
[353394678,1739812241672,-751.05,0.00012356,2]
[353394679,1739812241681,-1037.11,0.00012356,2]
[353394680,1739812241690,-2753.72,0.00012356,2]
[353394681,1739812241699,-343.59174958,0.00012377,2]
[353394682,1739812241708,-1143.47,0.00012438,2]
[353394683,1739812241717,-751.05,0.00012438,2]
[353394684,1739812241727,-1037.11,0.00012438,2]
[353394685,1739812241739,-2753.72,0.00012438,2]
[353394686,1739812241748,-1143.47,0.0001252,2]
[353394687,1739812241757,-751.05,0.0001252,2]
[353394688,1739812241767,-1037.11,0.0001252,2]
[353394689,1739812241776,-2753.72,0.0001252,2]
[353394690,1739812241785,-1143.47,0.00012602,2]
[353394691,1739812241795,-751.05,0.00012602,2]
[353394692,1739812241804,-1037.11,0.00012602,2]
[353394693,1739812241813,-2753.72,0.00012602,2]
[353394694,1739812241823,-1143.47,0.00012684,2]
[353394695,1739812241832,-751.05,0.00012684,2]
[353394696,1739812241842,-1037.11,0.00012684,2]
[353394697,1739812241852,-2753.72,0.00012684,2]
[353394698,1739812241862,-1143.47,0.00012767,2]
[353394699,1739812241871,-751.05,0.00012767,2]
[353394700,1739812241880,-1037.11,0.00012767,2]
[353394701,1739812241889,-2753.72,0.00012767,2]
[353394702,1739812241898,-1143.57,0.00012849,2]
[353394703,1739812241908,-751.2,0.00012849,2]
[353394704,1739812241917,-1037.15,0.00012849,2]
[353394705,1739812241927,-2753.91,0.00012849,2]
[353394706,1739812241936,-396.0,0.00012886,2]
[353394707,1739812241946,-343.59174958,0.00013137,2]
[353394708,1739812241955,-355.0956536,0.00013205,2]
[353394709,1739812241965,-355.0956536,0.00013205,2]
[353394710,1739812241975,-153.968,0.00013262,2]
[353394711,1739812241984,-231.682,0.00013262,2]
[353394712,1739812241993,-185.082,0.00013262,2]
[353394713,1739812242003,-150.0,0.00013262,2]
[353394714,1739812242012,-538.0,0.00013262,2]
[353394715,1739812242022,-1971.0,0.00013262,2]
[353394716,1739812242033,-2292.0,0.00013262,2]
[353394717,1739812242043,-151.0,0.000133,2]
[353394718,1739812242053,-151.0,0.000133,2]
[353394719,1739812242062,-496.196,0.00013553,2]
[353394720,1739812242072,-168.36,0.00013699,2]
[353394721,1739812242081,-168.36,0.00013699,2]
[353394722,1739812242090,-168.36,0.00013699,2]
[353394723,1739812242100,-168.36,0.00013699,2]
[353394724,1739812242110,-168.36,0.00013699,2]
[353394725,1739812242119,-168.40267667,0.00013699,2]
[353394726,1739812242129,-503.366204,0.00013699,2]
[353394727,1739812242138,-888.225439,0.00013699,2]
[353394728,1739812242147,-500.0,0.00013699,2]
[353394729,1739812242157,-500.0,0.00013699,2]
[353394730,1739812242166,-500.0,0.00013699,2]
[353394731,1739812242175,-500.0,0.00013699,2]
[353394732,1739812242185,-500.0,0.00013699,2]
[353394733,1739812242194,-500.0,0.00013699,2]
[353394734,1739812242203,-500.0,0.00013699,2]
[353394735,1739812242214,-500.0,0.00013699,2]
[353394736,1739812242223,-500.0,0.00013699,2]
[353394737,1739812242232,-500.0,0.00013699,2]
[353394738,1739812242241,-500.0,0.00013699,2]
[353394739,1739812242251,-500.0,0.00013699,2]
[353394740,1739812242260,-500.0,0.00013699,2]
[353394741,1739812242269,-500.0,0.00013699,2]
[353394742,1739812242279,-368.30443768,0.00013699,2]
[353394743,1739812242288,-500.0,0.00013699,2]
[353394744,1739812242297,-500.0,0.00013699,2]
[353394745,1739812242307,-500.0,0.00013699,2]
[353394746,1739812242317,-500.0,0.00013699,2]
[353394747,1739812242326,-500.0,0.00013699,2]
[353394748,1739812242335,-500.0,0.00013699,2]
[353394749,1739812242345,-500.0,0.00013699,2]
[353394750,1739812242354,-500.0,0.00013699,2]
[353394751,1739812242364,-500.0,0.00013699,2]
[353394752,1739812242375,-500.0,0.00013699,2]
[353394753,1739812242385,-500.0,0.00013699,2]
[353394755,1739812242395,-500.0,0.00013699,2]
[353394757,1739812242405,-500.0,0.00013699,2]
[353394758,1739812242415,-320.283,0.00013699,2]
[353394760,1739812242425,-500.0,0.00013699,2]
[353394762,1739812242435,-500.0,0.00013699,2]
[353394764,1739812242444,-500.0,0.00013699,2]
[353394765,1739812242454,-500.0,0.00013699,2]
[353394767,1739812242464,-500.0,0.00013699,2]
[353394769,1739812242474,-585.79207612,0.00013699,2]
[353394771,1739812242484,-500.0,0.00013699,2]
[353394773,1739812242496,-500.0,0.00013699,2]
[353394775,1739812242506,-500.0,0.00013699,2]
[353394778,1739812242516,-500.0,0.00013699,2]
[353394780,1739812242526,-500.0,0.00013699,2]
[353394781,1739812242536,-500.0,0.00013699,2]
[353394782,1739812242545,-500.0,0.00013699,2]
[353394783,1739812242555,-500.0,0.00013699,2]
[353394784,1739812242567,-500.0,0.00013699,2]
[353394785,1739812242577,-631.18115105,0.00013699,2]
[353394786,1739812242587,-500.0,0.00013699,2]
[353394787,1739812242596,-500.0,0.00013699,2]
[353394788,1739812242606,-500.0,0.00013699,2]
[353394789,1739812242615,-500.0,0.00013699,2]
[353394790,1739812242625,-500.0,0.00013699,2]
[353394791,1739812242634,-500.0,0.00013699,2]
[353394792,1739812242643,-500.0,0.00013699,2]
[353394793,1739812242653,-500.0,0.00013699,2]
[353394794,1739812242664,-610.97965046,0.00013699,2]
[353394795,1739812242674,-500.0,0.00013699,2]
[353394797,1739812242683,-500.0,0.00013699,2]
[353394799,1739812242692,-500.0,0.00013699,2]
[353394801,1739812242701,-500.0,0.00013699,2]
[353394803,1739812242711,-500.0,0.00013699,2]
[353394805,1739812242720,-500.0,0.00013699,2]
[353394807,1739812242729,-500.0,0.00013699,2]
[353394809,1739812242739,-610.97965046,0.00013699,2]
[353394811,1739812242748,-500.0,0.00013699,2]
[353394813,1739812242758,-500.0,0.00013699,2]
[353394815,1739812242767,-500.0,0.00013699,2]
[353394817,1739812242776,-500.0,0.00013699,2]
[353394819,1739812242786,-500.0,0.00013699,2]
[353394821,1739812242796,-382.547,0.00013699,2]
[353394823,1739812242805,-500.0,0.00013699,2]
[353394825,1739812242815,-500.0,0.00013699,2]
[353394827,1739812242825,-500.0,0.00013699,2]
[353394829,1739812242834,-500.0,0.00013699,2]
[353394831,1739812242843,-500.0,0.00013699,2]
[353394840,1739812242929,-500.0,0.00013699,2]
[353394841,1739812242939,-500.0,0.00013699,2]
[353394842,1739812242948,-484.68169089,0.00013699,2]
[353394844,1739812242959,-500.0,0.00013699,2]
[353394846,1739812242969,-500.0,0.00013699,2]
[353394847,1739812242980,-500.0,0.00013699,2]
[353394848,1739812242990,-500.0,0.00013699,2]
[353394849,1739812242999,-500.0,0.00013699,2]
[353394850,1739812243010,-500.0,0.00013699,2]
[353394851,1739812243020,-500.0,0.00013699,2]
[353394852,1739812243030,-500.0,0.00013699,2]
[353394853,1739812243040,-500.0,0.00013699,2]
[353394854,1739812243050,-565.59057553,0.00013699,2]
[353394855,1739812243059,-500.0,0.00013699,2]
[353394856,1739812243069,-718.2755767,0.00013699,2]
[353394857,1739812243079,-718.2755767,0.00013699,2]
[353394858,1739812243088,-718.2755767,0.00013699,2]
[353394859,1739812243097,-718.2755767,0.00013699,2]
[353394860,1739812243107,-718.2755767,0.00013699,2]
[353394861,1739812243117,-718.2755767,0.00013699,2]
[353394862,1739812243127,-151.0,0.000137,2]
[353394863,1739812243137,-500.0,0.000137,2]
[353394864,1739812243146,-500.0,0.000137,2]
[353394865,1739812243156,-274.70902027,0.000137,2]
[353394866,1739812243166,-151.0,0.000137,2]
[353394867,1739812243176,-500.0,0.000137,2]
[353394868,1739812243185,-500.0,0.000137,2]
[353394869,1739812243195,-500.0,0.000137,2]
[353394870,1739812243204,-804.42138366,0.00013789,2]
[353394871,1739812243215,-804.42138366,0.00013889,2]
[353394872,1739812243225,-343.59174958,0.00013896,2]
[353394873,1739812243235,-500.0,0.000139,7]
[353394874,1739812243245,-500.0,0.000139,7]
[353394875,1739812243254,-500.0,0.000139,7]
[353394876,1739812243263,-500.0,0.000139,7]
[353394877,1739812243273,-500.0,0.000139,7]
[353394878,1739812243283,-500.0,0.000139,7]
[353394879,1739812243292,-500.0,0.000139,7]
[353394880,1739812243301,-500.0,0.000139,7]
[353394881,1739812243311,-500.0,0.000139,7]
[353394882,1739812243321,-500.0,0.000139,7]
[353394883,1739812243330,-500.0,0.000139,7]
[353394884,1739812243340,-500.0,0.000139,7]
[353394885,1739812243349,-500.0,0.000139,7]
[353394886,1739812243359,-500.0,0.000139,7]
[353394887,1739812243369,-500.0,0.000139,7]
[353394888,1739812243379,-500.0,0.000139,7]
[353394889,1739812243388,-500.0,0.000139,7]
[353394890,1739812243398,-500.0,0.000139,7]
[353394891,1739812243408,-500.0,0.000139,7]
[353394892,1739812243418,-500.0,0.000139,7]
[353394893,1739812243428,-500.0,0.000139,7]
[353394894,1739812243438,-500.0,0.000139,7]
[353394895,1739812243448,-500.0,0.000139,7]
[353394896,1739812243458,-500.0,0.000139,7]
[353394897,1739812243468,-500.0,0.000139,7]
[353394898,1739812243478,-500.0,0.000139,7]
[353394899,1739812243491,-500.0,0.000139,7]
[353394900,1739812243500,-500.0,0.000139,7]
[353394901,1739812243510,-500.0,0.000139,7]
[353394902,1739812243520,-500.0,0.000139,7]
[353394903,1739812243531,-500.0,0.000139,7]
[353394904,1739812243540,-500.0,0.000139,7]
[353394905,1739812243550,-500.0,0.000139,7]
[353394906,1739812243560,-500.0,0.000139,7]
[353394907,1739812243571,-237.34,0.000139,7]
[353394908,1739812243581,-355.0956536,0.00013941,2]
[353394909,1739812243591,-804.42138366,0.00013989,2]
[353394910,1739812243601,-982.05507013,0.00013992,2]
[353394911,1739812243611,-982.05507013,0.00013996,2]
[353394912,1739812243621,-982.05507013,0.00013999,2]
[353394913,1739812243632,-355.0956536,0.00014041,2]
[353394914,1739812243642,-804.42138366,0.00014089,2]
[353394915,1739812243651,-151.0,0.000141,2]
[353394916,1739812243664,-151.0,0.000141,2]
[353394917,1739812243682,-361.8870903,0.00014178,2]
[353394918,1739812243698,-804.42138366,0.00014189,2]
[353394919,1739812243711,-151.0,0.000142,2]
[353394920,1739812243726,-1000.0,0.00014248,2]
[353394921,1739812243742,-565.20107158,0.00014248,2]
[353394922,1739812243758,-1000.0,0.00014248,2]
[353394923,1739812243773,-1000.0,0.00014248,2]
[353394924,1739812243787,-1000.0,0.00014248,2]
[353394925,1739812243802,-804.42138366,0.00014289,2]
[353394926,1739812243816,-804.42138366,0.00014389,2]
[353394927,1739812243832,-600.0,0.000144,2]
[353394928,1739812243846,-168.48787744,0.00014411,2]
[353394929,1739812243861,-804.42138366,0.00014489,2]
[353394930,1739812243875,-151.0,0.000145,2]
[353394931,1739812243887,-151.0,0.000145,2]
[353394932,1739812243900,-600.0,0.0001455,2]
[353394933,1739812243913,-345.0,0.0001455,2]
[353394934,1739812243927,-804.42138366,0.00014589,2]
[353394935,1739812243942,-151.0,0.000146,2]
[353394936,1739812243957,-1181.9565742,0.00014601,2]
[353394937,1739812243971,-1000.0,0.00014659,2]
[353394938,1739812243986,-804.42138366,0.00014689,2]
[353394939,1739812243998,-600.0,0.000147,2]
[353394940,1739812244010,-826.34680787,0.00014709,2]
[353394941,1739812244024,-431.720618,0.00014712,2]
[353394942,1739812244040,-153.5365275,0.00014712,2]
[353394943,1739812244055,-153.0000001,0.00014712,2]
[353394944,1739812244067,-1002.40973427,0.00014733,2]
[353394945,1739812244079,-1000.0,0.00014734,2]
[353394946,1739812244095,-1000.0,0.00014741,2]
[353394947,1739812244108,-1000.0,0.00014758,2]
[353394948,1739812244120,-1000.0,0.00014765,2]
[353394949,1739812244132,-1000.0,0.00014771,2]
[353394950,1739812244144,-152.0,0.0001478,2]
[353394951,1739812244157,-804.42138366,0.00014789,2]
[353394952,1739812244169,-1311.44150986,0.000148,2]
[353394953,1739812244181,-2533.90202106,0.000148,2]
[353394954,1739812244193,-2533.90202106,0.000148,2]
[353394955,1739812244207,-2533.90202106,0.000148,2]
[353394956,1739812244219,-2533.90202106,0.000148,2]
[353394957,1739812244232,-2533.90202106,0.000148,2]
[353394958,1739812244243,-2533.90202106,0.000148,2]
[353394959,1739812244256,-2533.90202106,0.000148,2]
[353394960,1739812244268,-2533.90202106,0.000148,2]
[353394961,1739812244281,-2533.90202106,0.000148,2]
[353394962,1739812244293,-2533.90202106,0.000148,2]
[353394963,1739812244305,-2533.90202106,0.000148,2]
[353394964,1739812244318,-2533.90202106,0.000148,2]
[353394965,1739812244331,-2533.90202106,0.000148,2]
[353394966,1739812244343,-2533.90202106,0.000148,2]
[353394967,1739812244355,-2533.90202106,0.000148,2]
[353394968,1739812244368,-2533.90202106,0.000148,2]
[353394969,1739812244380,-2533.90202106,0.000148,2]
[353394970,1739812244395,-2533.90202106,0.000148,2]
[353394971,1739812244407,-2533.90202106,0.000148,2]
[353394972,1739812244420,-2533.9,0.000148,2]
[353394973,1739812244431,-415.87866598,0.000148,2]
[353394974,1739812244444,-415.87866598,0.000148,2]
[353394975,1739812244456,-415.87866598,0.000148,2]
[353394976,1739812244469,-415.87866598,0.000148,2]
[353394977,1739812244482,-415.87866598,0.000148,2]
[353394978,1739812244496,-415.87866598,0.000148,2]
[353394979,1739812244505,-415.87866598,0.000148,2]
[353394980,1739812244514,-415.87866598,0.000148,2]
[353394981,1739812244524,-415.87866598,0.000148,2]
[353394982,1739812244534,-415.87866598,0.000148,2]
[353394983,1739812244544,-415.87866598,0.000148,2]
[353394984,1739812244554,-415.87866598,0.000148,2]
[353394985,1739812244564,-415.87866598,0.000148,2]
[353394986,1739812244573,-415.87866598,0.000148,2]
[353394987,1739812244583,-415.87866598,0.000148,2]
[353394988,1739812244593,-415.87866598,0.000148,2]
[353394989,1739812244602,-415.87866598,0.000148,2]
[353394990,1739812244757,-415.87866598,0.000148,2]
[353394991,1739812244776,-415.87866598,0.000148,2]
[353394992,1739812244787,-415.87,0.000148,2]
[353394993,1739812244797,-600.0,0.0001485,2]
[353394994,1739812244807,-485.53027397,0.00014873,2]
[353394995,1739812244817,-500.0,0.00014873,2]
[353394996,1739812244826,-3690.29009538,0.00014877,2]
[353394997,1739812244835,-1000.0,0.00014881,2]
[353394998,1739812244844,-804.42138366,0.00014889,2]
[353394999,1739812244854,-156.55,0.00014898,2]
[353395000,1739812244864,-826.83390457,0.00014899,2]
[353395001,1739812244873,-374.99246179,0.00014899,2]
[353395002,1739812244882,-183.1,0.000149,2]
[353395003,1739812244892,-300.0,0.000149,5]
[353395004,1739812244901,-307245.86394318,0.000149,2]
[353395005,1739812244981,-19073.8,0.000149,2]
[353395006,1739812244992,-579.938,0.000149,2]
[353395007,1739812245008,-227863.63226478,0.000149,2]
[353395008,1739812245019,-634.50818276,0.000149,2]
[353395009,1739812245031,-3727.77999999,0.000149,2]
[353395010,1739812245064,-954.53,0.000149,2]
[353395041,1739812245895,-500.0,0.00010958,2]
[353395043,1739812245905,-2238.98163269,0.000149,2]
[353395049,1739812245949,-84321.66021948,0.000149,2]
[353395051,1739812245960,-10424.53688512,0.000149,2]
[353395053,1739812245973,-5912.43804915,0.000149,2]
[353395055,1739812245983,-5912.43804915,0.000149,2]
[353395058,1739812245992,-5912.43804915,0.000149,2]
[353395060,1739812246002,-5912.43804915,0.000149,2]
[353395062,1739812246011,-5912.43804915,0.000149,2]
[353395063,1739812246021,-5912.43804915,0.000149,2]
[353395064,1739812246030,-5912.43804915,0.000149,2]
[353395065,1739812246040,-5912.43804915,0.000149,2]
[353395066,1739812246049,-5912.43804915,0.000149,2]
[353395068,1739812246059,-5912.43804915,0.000149,2]
[353395070,1739812246069,-5912.43804915,0.000149,2]
[353395072,1739812246078,-5912.43804915,0.000149,2]
[353395073,1739812246088,-2023.10311025,0.000149,2]
[353395074,1739812259292,1100.0,0.00010393,2]
[353395087,1739813226127,-300.0,0.00010632,2]
[353395088,1739813226149,-400.0,0.00010685,2]
[353395089,1739813226173,-9.32700772,0.00010739,2]
[353395091,1739813237218,-290.67299228,0.00010739,2]
[353395092,1739813237240,-300.0,0.00010957,2]
[353395093,1739813237260,-334.98342598,0.00010958,2]
[353395094,1739813246083,-256.84534838,0.00010632,2]
[353395095,1739813250080,-33.8276439,0.00010632,2]
[353395096,1739813250102,-166.39289694,0.00010958,2]
[353395097,1739813250124,-500.0,0.00010958,2]
[353395098,1739813250144,-500.51516367,0.00010958,2]
[353395099,1739813250164,-501.37385043,0.00010958,2]
[353395100,1739813250184,-500.0,0.00010958,2]
[353395101,1739813250205,-266.95893121,0.00010958,2]
[353395102,1739813254090,-233.04106879,0.00010958,2]
[353395103,1739813254113,-48.1631606,0.00010958,2]
[353395106,1739813317593,1032.40704363,0.00016519,90]
[353395140,1739813432125,-3206.91590827,0.00010848,2]
[353395141,1739813432182,-739.64081014,0.00010848,2]
[353395143,1739813432191,-300.0,0.00010957,2]
[353395145,1739813432201,-451.8368394,0.00010958,2]
[353395147,1739813432211,-500.0,0.00010958,2]
[353395150,1739813432220,-500.0,0.00010958,2]
[353395151,1739813432229,-500.0,0.00010958,2]
[353395152,1739813432238,-500.0,0.00010958,2]
[353395153,1739813432248,-482.02812297,0.00010958,2]
[353395156,1739813432257,-500.0,0.00010958,2]
[353395159,1739813432267,-500.0,0.00010958,2]
[353395161,1739813432276,-218.06488151,0.00011041,2]
[353395162,1739813432288,-217.81357733,0.00011041,2]